{"text_format":"3","workbook":"xlsx","n_sheets":1,"sheets":["Volume Activité Grimper Assurer"],"not_rendered":{"macros":1},"read":"whole","date_system":"1900"}

{"sheet":"Volume Activité Grimper Assurer","index":0,"n_rows":52,"n_cols":29,"rows_kept":52}
[{"$f":"CONCATENATE(TEXT(TODAY(),\"aaaammjj\"),\" - \",B2,\" - Escalade\")","v":"20101202 - 4C - Escalade"}," CLASSE : "]
["OK","4C"]
["Etat","NOM Prénom","Grimpeur","Assureur","Essai 1","Essai 2","Essai 3","Essai 4","Essai 5","Essai 6","Essai 7","Essai 8","Essai 9","Essai 10","Essai 11","Essai 12","Essai 13","Essai 14","Essai 15","Essai 16","Essai 17","Essai 18","Essai 19","Essai 20","Essai 21","Essai 22","Essai 23","Essai 24","Essai 25"]
[]
[null,"AKAR Soner",{"$f":"IF(OR($A5<>\"\",$B5=\"\"),\"\",COUNTIF($E5:$AC5,C$3))","v":2},{"$f":"IF(OR($A5<>\"\",$B5=\"\"),\"\",COUNTIF($E5:$AC5,D$3))","v":0},"Grimpeur","Grimpeur"]
[null,"ATOUI Nabih",{"$f":"IF(OR($A6<>\"\",$B6=\"\"),\"\",COUNTIF($E6:$AC6,C$3))","v":3},0,"Grimpeur","Grimpeur","Grimpeur"]
[null,"BEN MESSAOUD Yosra",1,0,"Grimpeur"]
[null,"BENATIR Slimane",0,1,"Assureur"]
[null,"BOUARBIA Ibrahim",1,0,"Grimpeur"]
[null,"CAMPHIN Océane",0,0]
[null,"CHEEMA Anam",0,0]
[null,"CHENOUF Yamine",0,0]
[null,"DIDI Youcef",0,0]
[null,"EL-ATRI Chaïma",0,0]
[null,"GHAMRI Cherif",0,0]
[null,"HTIRA Ali",0,0]
[null,"M'MADI Kader",0,0]
[null,"MAHMOUD Amina",0,0]
[null,"MAHMOUD Nagad",0,0]
[null,"MESSAOUDENE Nacim",0,0]
[null,"OUAZGHIRI Hamza",0,0]
[null,"SALMI Zohra",0,0]
[null,"ZAHIR Zahra",0,0]
[null,"ZOUAOUI Naïm",0,0]
[null,null,"",""]
[null,null,"",""]
[null,null,"",""]
[null,null,"",""]
[null,null,"",""]
[null,null,"",""]
[null,null,"",""]
[null,null,"",""]
[null,null,"",""]
[null,null,"",""]
[null,null,"",""]
[null,null,"",""]
[null,null,"",""]
[null,null,"",""]
[null,null,"",""]
[null,null,"",""]
[null,null,"",""]
[null,null,"",""]
[null,null,"",""]
[null,null,"",""]
[null,null,"",""]
[null,null,"",""]
[]
["Etat","NOM Prénom",{"$f":"C3","v":"Grimpeur"},{"$f":"D3","v":"Assureur"},"Essai 1","Essai 2","Essai 3","Essai 4","Essai 5","Essai 6","Essai 7","Essai 8","Essai 9","Essai 10","Essai 11","Essai 12","Essai 13","Essai 14","Essai 15","Essai 16","Essai 17","Essai 18","Essai 19","Essai 20","Essai 21","Essai 22","Essai 23","Essai 24","Essai 25"]
[]
[null,"MAX :",{"$f":"MAX(C$5:C$46)","v":3},{"$f":"MAX(D$5:D$46)","v":1}]
[null,"MOYENNE :",{"$f":"AVERAGE(C$5:C$46)","v":{"v":0.35,"d":"0"}},{"$f":"AVERAGE(D$5:D$46)","v":{"v":0.05,"d":"0"}}]
[null,"MIN :",{"$f":"MIN(C$5:C$46)","v":0},{"$f":"MIN(D$5:D$46)","v":0}]